bitfinex/quotes_ETHUSD_20250217
["timestamp","ask_amount","ask_price","bid_price","bid_amount"]
[1739787175192,3.62397,2759.4,2758.9,0.8223]
[1739787175494,3.62397,2759.4,2758.9,4.44691]
[1739787175656,3.62382,2759.6,2759.0,3.62448]
[1739787175854,3.986008,2759.7,2759.0,3.62448]
[1739787176054,0.362358,2759.7,2758.9,0.8223]
[1739787176249,3.62383,2759.6,2759.0,3.62448]
[1739787176597,0.8733,2760.0,2759.0,0.55]
[1739787176903,0.8733,2760.0,2759.2,3.6242]
[1739787177201,3.62318,2760.1,2759.5,3.62373]
[1739787177348,0.90776395,2760.2,2759.4,0.55]
[1739787177553,3.62339,2759.9,2759.4,0.55]
[1739787178169,3.62305,2760.1,2759.1,4.39624]
[1739787178406,3.62367,2759.7,2759.1,4.39619]
[1739787178610,3.62352,2759.8,2759.3,3.62409]
[1739787178792,3.62344,2759.9,2759.1,4.39619]
[1739787178992,3.6238,2759.6,2759.1,4.39618]
[1739787179809,0.362344,2759.9,2759.1,0.7719]
[1739787179979,3.62337,2759.9,2759.2,3.62415]
[1739787180184,7.24677,2759.9,2759.3,3.62401]
[1739787180609,3.62368,2759.7,2759.2,3.62415]
[1739787180807,3.6232,2760.0,2759.2,0.55]
[1739787181011,3.6232,2760.0,2759.3,3.62409]
[1739787181315,3.62358,2759.7,2759.2,4.17422]
[1739787181614,3.62358,2759.7,2759.2,7.79844]
[1739787181795,3.62358,2759.7,2759.2,4.17422]
[1739787182189,0.36232,2760.0,2759.4,3.62397]
[1739787182388,0.8723,2760.3,2759.3,3.62399]
[1739787182592,3.62326,2760.0,2759.3,3.6241]
[1739787182785,3.62326,2760.0,2759.4,3.62385]
[1739787183093,3.62307,2760.1,2759.6,3.62359]
[1739787183293,4.19211,2760.3,2759.7,3.62357]
[1739787183498,4.042791,2760.3,2759.7,4.43546]
[1739787183697,3.62283,2760.3,2759.7,4.43546]
[1739787184020,3.62283,2760.3,2759.8,3.62343]
[1739787184511,7.24551,2760.4,2759.8,3.62345]
[1739787184808,3.62275,2760.4,2759.7,4.43549]
[1739787184999,3.62322,2760.0,2759.7,0.812]
[1739787185201,3.62293,2760.2,2759.7,0.812]
[1739787185435,3.62293,2760.2,2759.7,4.4355]
[1739787185642,3.62274,2760.4,2759.7,4.4355]
[1739787185813,4.49687915,2760.4,2759.7,4.4355]
[1739787186015,3.62288,2760.3,2759.8,3.62344]
[1739787186546,3.62288,2760.3,2759.7,0.812]
[1739787186547,3.623,2760.2,2759.7,4.43556]
[1739787186914,3.623,2760.2,2759.7,0.812]
[1739787187116,3.62279,2760.3,2759.8,3.62344]
[1739787187340,3.62316,2760.1,2759.7,0.812]
[1739787187506,3.62279,2760.3,2759.7,0.812]
[1739787187712,3.62321,2760.0,2759.4,7.96008]
[1739787187913,7.69574892,2760.2,2759.5,3.62378]
[1739787188136,7.69574892,2760.2,2759.4,4.3362]
[1739787188137,0.44969892,2760.2,2759.6,3.62364]
[1739787188334,3.62284,2760.3,2759.6,3.62364]
[1739787188514,0.87419915,2760.4,2760.0,3.62311]
[1739787188708,3.62292,2760.2,2759.8,3.62332]
[1739787189023,3.62275,2760.4,2759.9,3.62324]
[1739787189720,7.24552,2760.4,2759.9,3.62324]
[1739787189920,3.62293,2760.2,2759.7,3.62351]
[1739787190232,3.62276,2760.4,2759.7,3.6235]
[1739787190457,4.19177,2760.6,2760.1,3.62303]
[1739787190835,4.19177,2760.6,2760.1,3.62298]
[1739787191038,0.420638,2760.7,2760.0,0.8085]
[1739787191357,3.6224,2760.6,2760.0,0.8085]
[1739787191560,3.6224,2760.6,2760.1,3.62304]
[1739787191760,4.33799248,2761.0,2760.0,0.8085]
[1739787191761,3.62144,2761.4,2760.6,0.7931]
[1739787191947,3.62144,2761.4,2760.8,3.62204]
[1739787192261,4.19034,2761.7,2761.1,3.62174]
[1739787192461,3.62129,2761.5,2760.7,3.62219]
[1739787192761,3.62129,2761.5,2761.0,3.62184]
[1739787192992,0.5693,2761.7,2760.9,3.622]
[1739787193157,3.91968,2762.0,2761.2,0.7855]
[1739787193352,3.62083,2761.8,2761.2,4.40702]
[1739787193753,3.62083,2761.8,2761.2,0.7855]
[1739787194002,3.62083,2761.8,2760.7,0.741529]
[1739787194003,0.391983,2761.8,2760.9,0.7567]
[1739787194151,3.62164,2761.2,2760.6,3.62231]
[1739787194490,3.62164,2761.2,2760.4,0.7567]
[1739787194659,0.0075,2761.4,2760.4,0.7567]
[1739787194984,3.62148,2761.3,2760.5,3.62249]
[1739787195284,3.62174,2761.1,2760.5,3.62249]
[1739787195452,4.403436,2761.3,2760.5,3.62249]
[1739787195453,3.62148,2761.3,2760.5,3.62249]
[1739787195654,0.5693,2761.5,2760.9,3.62199]
[1739787195655,4.19061,2761.5,2760.9,3.62199]
[1739787195848,3.62086,2761.8,2761.1,0.7702]
[1739787196297,7.24129,2762.0,2761.3,3.62135]
[1739787196450,3.62085,2761.8,2761.2,3.62154]
[1739787196650,3.62071,2761.9,2761.4,3.62132]
[1739787196888,3.62071,2761.9,2761.3,3.62147]
[1739787197494,3.62071,2761.9,2761.2,3.62154]
[1739787197873,3.62103,2761.7,2761.2,3.62154]
[1739787198047,3.62103,2761.7,2761.2,0.55]
[1739787198475,7.24155,2761.9,2761.2,4.1716]
[1739787198679,3.62092,2761.8,2761.2,4.1716]
[1739787198883,3.62109,2761.6,2761.1,0.7702]
[1739787199069,3.62109,2761.6,2761.1,4.39191]
[1739787199475,3.62138,2761.4,2760.8,3.62205]
[1739787199792,7.24284,2761.4,2760.8,3.62205]
[1739787199996,0.931409,2761.6,2760.7,0.8015]
[1739787200194,3.62194,2761.0,2760.4,4.39905]
[1739787200437,3.62205,2760.9,2760.4,4.39905]
[1739787200721,3.62241,2760.6,2760.1,4.3995]
[1739787201046,0.5693,2761.0,2760.3,3.62278]
[1739787201047,4.19124,2761.0,2760.3,3.62278]
[1739787201220,3.62208,2760.9,2760.3,3.62278]
[1739787202094,0.988394,2761.0,2760.1,0.7765]
[1739787202295,3.62222,2760.8,2760.2,3.62289]
[1739787202499,0.015,2760.8,2760.1,0.7765]
[1739787202714,0.015,2760.8,2760.0,3.62317]
[1739787202915,3.62256,2760.5,2760.0,3.62317]
[1739787203231,3.62275,2760.4,2759.8,0.7756]
[1739787203427,3.62213,2760.8,2759.8,0.7756]
[1739787203592,3.62271,2760.4,2759.8,0.7756]
[1739787203954,3.62271,2760.4,2759.9,3.62328]
[1739787204112,0.363713,2760.7,2759.8,0.7756]
[1739787204424,3.62274,2760.4,2759.8,4.39903]
[1739787205604,0.0075,2760.6,2759.8,0.7756]
[1739787205815,3.62291,2760.3,2759.8,0.7756]
[1739787205990,3.62288,2760.3,2759.8,0.7756]
[1739787206316,3.62293,2760.2,2759.8,0.7756]
[1739787206719,3.62288,2760.3,2759.8,0.7756]
[1739787206922,7.24576,2760.3,2759.8,0.7756]
[1739787207118,3.62288,2760.3,2759.8,0.7756]
[1739787207299,3.62287,2760.3,2759.8,0.7756]
[1739787207500,3.62293,2760.2,2759.8,0.7756]
[1739787207705,3.62369,2759.7,2759.2,1.50577413]
[1739787208022,7.24735,2759.7,2759.2,4.38713]
[1739787208222,3.62366,2759.7,2759.2,4.38713]
[1739787208413,3.62366,2759.7,2759.2,0.7629]
[1739787209124,3.62366,2759.7,2759.2,4.38706]
[1739787209434,3.62337,2759.9,2759.3,3.62402]
[1739787209596,3.62337,2759.9,2759.3,3.6241]
[1739787209800,3.62348,2759.8,2759.3,3.6241]
[1739787210033,7.2468,2759.9,2759.3,3.6241]
[1739787210331,3.62349,2759.8,2759.3,3.6241]
[1739787210531,0.5693,2760.1,2759.5,3.6238]
[1739787210532,3.62328,2760.0,2759.5,3.6238]
[1739787210739,3.62339,2759.9,2759.4,3.62397]
[1739787211114,3.62328,2760.0,2759.5,3.62377]
[1739787211323,3.62241,2760.6,2759.2,0.7629]
[1739787211324,0.5693,2760.4,2759.7,3.62347]
[1739787211525,0.0075,2760.2,2759.3,3.62402]
[1739787211812,3.62371,2759.6,2759.2,0.7629]
[1739787212022,3.62392,2759.5,2759.2,0.7629]
[1739787212552,3.62372,2759.6,2759.2,0.7629]
[1739787213004,3.62405,2759.4,2758.9,4.39778]
[1739787213361,7.24759,2759.6,2759.0,3.6244]
[1739787213657,3.62378,2759.6,2758.9,4.39778]
[1739787213830,3.62397,2759.4,2758.9,4.39778]
[1739787214515,0.015,2759.7,2758.9,0.7732]
[1739787214720,3.62446,2759.1,2758.5,3.62506]
[1739787215117,7.24838,2759.3,2758.7,3.62482]
[1739787215323,3.62434,2759.2,2758.7,3.62482]
[1739787215558,3.62448,2759.1,2758.6,3.0]
[1739787215767,3.62448,2759.1,2758.6,3.62501]
[1739787216012,3.62419,2759.3,2758.7,3.62487]
[1739787216170,3.62427,2759.2,2758.7,3.62487]
[1739787216554,3.62419,2759.3,2758.7,3.62487]
[1739787216555,3.62418,2759.3,2758.7,3.62487]
[1739787217057,3.6245,2759.1,2758.5,3.62509]
[1739787217255,7.24893,2759.1,2758.5,3.62509]
[1739787217506,7.2489,2759.1,2758.5,3.62509]
[1739787217710,3.62483,2758.8,2758.4,0.7732]
[1739787218048,3.6243,2759.2,2758.4,0.7732]
[1739787218254,3.62453,2759.0,2758.5,3.62515]
[1739787218668,3.6247,2758.9,2758.4,4.3984]
[1739787219507,3.6247,2758.9,2758.4,8.02362]
[1739787219713,3.62453,2759.0,2758.5,3.62508]
[1739787220693,0.41936,2759.2,2758.7,3.62487]
[1739787220916,1.03752354,2759.6,2759.0,3.62441]
[1739787220917,4.20058,2759.6,2759.0,3.62441]
[1739787221126,0.5693,2759.9,2759.0,0.8029]
[1739787221264,8.32281158,2760.3,2759.0,0.8029]
[1739787221265,3.917,2760.2,2759.6,3.62369]
[1739787221599,0.5693,2760.6,2759.8,4.40334]
[1739787221796,3.62253,2760.5,2760.0,3.62314]
[1739787222097,0.781416,2760.5,2760.0,3.62309]
[1739787222401,3.62267,2760.4,2759.8,4.40339]
[1739787222594,3.62287,2760.3,2759.8,0.78]
[1739787223386,4.19177,2760.6,2759.9,3.62322]
[1739787223586,0.5693,2760.6,2760.2,3.62291]
[1739787223787,4.021,2761.8,2759.8,0.78]
[1739787223788,0.5693,2761.0,2760.4,3.62258]
[1739787223978,0.5693,2761.0,2760.4,4.42218]
[1739787224304,3.62211,2760.9,2760.4,0.7996]
[1739787224480,1.032814,2761.0,2760.0,0.7996]
[1739787224677,3.62275,2760.4,2759.8,3.62338]
[1739787224868,0.015,2760.6,2759.7,0.8228]
[1739787225070,3.623,2760.2,2759.7,0.8228]
[1739787225808,3.62345,2759.8,2759.3,0.8253]
[1739787226413,3.9319,2760.3,2759.3,0.8253]
[1739787226568,3.62353,2759.8,2759.3,0.8253]
[1739787227099,3.62325,2760.0,2759.3,0.8253]
[1739787227398,0.45012,2760.2,2759.3,0.8253]
[1739787227707,0.294,2760.3,2759.8,7.24671]
[1739787227862,0.294,2760.3,2759.8,3.62335]
[1739787228200,3.9168,2760.3,2759.8,3.62335]
[1739787228401,0.294,2760.3,2759.8,3.62335]
[1739787228700,3.62276,2760.4,2759.8,3.62335]
[1739787228867,4.376581,2760.4,2759.8,3.62335]
[1739787229199,3.91542,2760.6,2759.5,0.7611]
[1739787229381,3.62269,2760.4,2759.8,3.62336]
[1739787229576,3.62269,2760.4,2759.7,3.62358]
[1739787229803,3.62254,2760.5,2759.9,3.62321]
[1739787230119,4.433266,2760.5,2759.9,3.62321]
[1739787230321,3.62274,2760.4,2759.8,3.62337]
[1739787230465,0.810726,2760.5,2759.9,3.6232]
[1739787230804,4.433256,2760.5,2759.9,3.6232]
[1739787231120,0.810726,2760.5,2759.8,3.62337]
[1739787231266,3.91546,2760.6,2760.0,3.62318]
[1739787231666,3.6297,2760.8,2760.2,4.40138]
[1739787231879,7.25192,2760.8,2760.2,4.40138]
[1739787232201,7.25192,2760.8,2759.8,4.40186]
[1739787232202,3.62275,2760.4,2759.8,4.40186]
[1739787232709,3.62275,2760.4,2759.9,3.62329]
[1739787233101,0.0075,2760.8,2759.8,4.40186]
[1739787233271,3.62253,2760.5,2760.0,3.62318]
[1739787233691,7.24418,2760.9,2759.8,0.7785]
[1739787233896,4.346578,2760.8,2760.2,3.6228]
[1739787234106,3.62234,2760.7,2760.2,3.6228]
[1739787234321,3.62241,2760.6,2760.1,3.62305]
[1739787234489,4.346568,2760.8,2760.1,3.62305]
[1739787234690,4.346568,2760.8,2760.3,3.62278]
[1739787234885,0.8260628,2760.7,2760.3,3.62278]
[1739787235085,0.292,2760.9,2760.3,3.62278]
[1739787235353,4.19111,2761.1,2760.5,3.62242]
[1739787235558,3.62155,2761.3,2760.7,4.39818]
[1739787235842,4.040715,2761.2,2760.7,4.39818]
[1739787236194,3.62212,2760.9,2760.4,0.7974]
[1739787236524,7.2442,2760.9,2760.4,0.7974]
[1739787236820,3.62214,2760.8,2760.4,0.7974]
[1739787236987,3.62235,2760.7,2760.1,8.03296]
[1739787237187,3.62235,2760.7,2760.1,4.40997]
[1739787237428,3.62268,2760.4,2760.1,0.787]
[1739787237724,0.5693,2760.8,2760.0,3.62317]
[1739787237725,3.62254,2760.5,2760.0,3.62317]
[1739787237945,0.724502,2760.5,2760.0,3.62317]
[1739787238127,3.62248,2760.6,2760.1,3.62304]
[1739787238626,3.62248,2760.6,2759.9,3.62323]
[1739787238827,3.62274,2760.4,2759.9,3.62323]
[1739787239040,3.62248,2760.6,2759.9,3.62323]
[1739787239250,3.62248,2760.6,2760.1,3.62304]
[1739787239448,4.433726,2760.6,2759.9,3.62323]
[1739787239754,3.62268,2760.4,2759.9,3.62323]
[1739787240049,4.433726,2760.6,2759.9,3.62323]
[1739787240340,4.433726,2760.6,2760.0,3.62317]
[1739787240341,3.62255,2760.5,2760.0,3.62317]
[1739787240992,4.433726,2760.6,2760.0,7.24628]
[1739787241196,0.811246,2760.6,2760.2,3.62285]
[1739787241511,3.62244,2760.6,2760.0,7.24624]
[1739787241713,3.62244,2760.6,2760.0,3.62309]
[1739787241912,3.62244,2760.6,2760.1,3.62301]
[1739787242226,4.19148,2760.8,2760.3,3.62279]
[1739787242546,4.972822,2760.8,2760.2,3.62282]
[1739787242853,3.62234,2760.7,2760.2,3.62282]
[1739787243142,3.62218,2760.8,2760.1,3.62303]
[1739787243350,3.6225,2760.6,2760.0,3.62317]
[1739787243516,3.6226,2760.5,2760.0,3.62317]
[1739787243855,3.62276,2760.4,2759.8,4.41035]
[1739787244305,3.62276,2760.4,2759.9,3.62323]
[1739787244496,4.19183,2760.5,2759.9,3.62331]
[1739787244696,4.19183,2760.5,2760.0,3.62316]
[1739787244891,3.62933,2761.1,2760.3,3.62266]
[1739787245110,0.29,2761.1,2760.1,0.8042]
[1739787245359,0.29,2761.1,2760.7,3.62219]
[1739787246395,3.62196,2761.0,2760.5,3.62244]
[1739787246598,4.432255,2761.0,2760.3,3.6227]
[1739787246799,0.810295,2761.0,2760.6,3.6224]
[1739787247133,0.5693,2761.6,2760.8,0.7823]
[1739787247330,0.5693,2761.6,2761.1,3.62166]
[1739787247838,3.62124,2761.5,2760.8,0.7823]
[1739787248001,3.62162,2761.2,2760.7,3.62219]
[1739787248338,0.363662,2761.2,2760.7,3.62216]
[1739787248546,3.985272,2761.2,2760.7,3.62216]
[1739787249336,0.363662,2761.2,2760.7,3.62216]
[1739787250037,0.015,2761.4,2760.6,3.6224]
[1739787250211,4.19047,2761.6,2761.0,3.62184]
[1739787250415,0.5693,2761.6,2761.0,3.62184]
[1739787250615,4.1904,2761.6,2761.0,3.62184]
[1739787250827,4.1904,2761.6,2761.0,3.62179]
[1739787251026,2.193647,2761.6,2761.1,3.62173]
[1739787251209,2.193647,2761.6,2761.2,3.62154]
[1739787251407,2.193647,2761.6,2761.0,3.62185]
[1739787251602,0.5693,2761.6,2761.1,3.6217]
[1739787251809,11.76396,2761.7,2761.2,3.62161]
[1739787252413,0.8583,2761.9,2761.4,3.62127]
[1739787252760,0.289,2762.2,2761.7,3.62085]
[1739787253015,0.5693,2762.3,2761.2,8.69159149]
[1739787253163,0.5693,2762.3,2762.0,3.62047]
[1739787253560,3.61991,2762.5,2761.8,4.43935]
[1739787253769,3.6198,2762.6,2761.8,4.43935]
[1739787253932,3.6198,2762.6,2762.1,3.62041]
[1739787254283,0.5693,2762.7,2762.1,3.62038]
[1739787254632,0.5693,2763.2,2762.1,4.24795149]
[1739787254930,3.6189,2763.3,2762.7,3.61956]
[1739787255147,3.61879,2763.4,2762.7,3.61956]
[1739787255351,3.61879,2763.4,2762.8,3.61948]
[1739787255574,3.61878,2763.4,2762.8,3.61949]
[1739787256490,4.18798,2763.5,2762.9,3.61937]
[1739787256662,3.61873,2763.4,2762.8,4.16310329]
[1739787257407,0.5693,2763.5,2762.8,0.54361329]
[1739787257613,4.18792,2763.5,2762.9,3.61936]
[1739787258456,3.6188,2763.4,2762.5,3.61986]
[1739787258651,3.61904,2763.2,2762.6,3.61969]
[1739787259070,3.61904,2763.2,2762.7,3.61963]
[1739787259299,3.61904,2763.2,2762.6,3.61969]
[1739787259467,3.6188,2763.4,2762.8,3.61951]
[1739787259803,3.61851,2763.6,2762.8,3.981461]
[1739787260008,3.61851,2763.6,2763.1,3.61912]
[1739787260150,6.06699772,2763.8,2763.1,3.61912]
[1739787260349,5.49769772,2763.8,2763.1,3.61912]
[1739787260548,0.73348125,2764.0,2763.0,4.37233]
[1739787260750,7.23716,2763.6,2763.0,1.2265281]
[1739787260987,3.61827,2763.8,2763.0,1.2265281]
[1739787261193,3.61801,2764.0,2763.4,3.61863]
[1739787262387,3.61822,2763.8,2763.2,3.61891]
[1739787262687,7.23603,2764.0,2763.2,3.61891]
[1739787262987,3.61817,2763.9,2763.3,3.61885]
[1739787263487,3.618,2764.0,2763.2,3.61891]
[1739787263701,3.61827,2763.8,2763.3,0.361891]
[1739787263850,0.5693,2764.1,2763.3,0.361891]
[1739787264050,3.6181,2763.9,2763.3,3.980641]
[1739787264494,3.61834,2763.7,2763.3,0.361891]
[1739787264679,0.5693,2764.1,2763.0,0.7531]
[1739787264883,3.61817,2763.9,2763.2,3.61887]
[1739787265075,3.61822,2763.8,2763.2,3.61891]
[1739787265599,0.5693,2764.1,2763.0,4.37229]
[1739787265801,3.61849,2763.6,2763.0,7.99147]
[1739787265964,3.61849,2763.6,2763.0,4.37228]
[1739787266160,0.015,2763.9,2763.0,0.7531]
[1739787266365,3.61902,2763.2,2762.7,3.61957]
[1739787266560,0.94359076,2764.0,2762.9,7.86733149]
[1739787266767,8.139,2764.2,2763.5,0.8321]
[1739787267306,0.70849387,2764.9,2763.7,0.8321]
[1739787267475,3.61691,2764.8,2764.1,3.61769]
[1739787267675,3.61776,2764.2,2763.9,0.8321]
[1739787267879,3.61776,2764.2,2763.6,4.40326]
[1739787268081,3.61776,2764.2,2763.6,1.71519598]
[1739787268406,0.015,2764.5,2763.6,0.7848]
[1739787268633,0.5693,2764.0,2763.2,0.7848]
[1739787268916,3.61822,2763.8,2763.2,4.40371]
[1739787269079,4.18731,2764.0,2763.2,4.40374]
[1739787269280,4.35126466,2764.2,2763.5,3.6185]
[1739787269493,3.61805,2764.0,2763.4,3.61864]
[1739787269668,3.61774,2764.2,2763.4,3.61864]
[1739787269863,0.0075,2764.3,2763.6,3.61836]
[1739787270064,3.61742,2764.4,2763.7,0.7653]
[1739787270264,3.61732,2764.5,2763.7,4.38363]
[1739787270478,3.61765,2764.3,2763.7,0.7653]
[1739787270680,3.61792,2764.1,2763.7,0.7653]
[1739787271020,3.61784,2764.1,2763.5,3.6185]
[1739787271384,3.61774,2764.2,2763.5,4.418237]
[1739787271385,7.23553,2764.2,2763.5,4.418237]
[1739787271610,3.61802,2764.0,2763.5,0.799737]
[1739787271823,3.61807,2763.9,2763.4,0.7602]
[1739787272164,3.61868,2763.5,2762.9,0.768]
[1739787272428,3.61856,2763.6,2763.0,3.61923]
[1739787272624,4.18753,2763.8,2763.2,3.61887]
[1739787272823,3.61828,2763.8,2763.2,3.61887]
[1739787272989,3.61851,2763.6,2763.0,4.419854]
[1739787273328,3.61887,2763.3,2762.9,0.768]
[1739787274488,4.18793,2763.5,2762.9,0.768]
[1739787274799,3.61907,2763.2,2762.6,4.40495]
[1739787275101,3.61895,2763.3,2762.7,3.61955]
[1739787275289,7.24513,2763.4,2762.8,3.61949]
[1739787275629,3.61908,2763.2,2762.6,0.7852]
[1739787275791,3.61928,2763.0,2762.6,0.7852]
[1739787276444,3.90756,2763.6,2762.8,3.61946]
[1739787276445,3.6188,2763.4,2762.8,3.61946]
[1739787276592,3.61871,2763.5,2762.8,3.61939]
[1739787276786,7.23741,2763.5,2762.9,3.61926]
[1739787277010,3.61873,2763.4,2762.8,3.61939]
[1739787277212,3.61887,2763.3,2762.8,3.61939]
[1739787278402,0.289,2763.6,2762.6,1.61996038]
[1739787278602,3.61893,2763.3,2762.7,3.61961]
[1739787278827,0.289,2763.6,2762.6,1.61996038]
[1739787279014,3.61889,2763.3,2762.8,3.61943]
[1739787279310,3.61859,2763.5,2762.9,3.61937]
[1739787279497,3.61874,2763.4,2762.9,3.61937]
[1739787279699,3.61888,2763.3,2762.8,3.61943]
[1739787280126,3.6186,2763.5,2763.0,3.61924]
[1739787280430,4.19516,2763.7,2763.0,3.61924]
[1739787280934,3.61825,2763.8,2763.2,3.6189]
[1739787281138,3.61775,2764.2,2763.2,3.61899]
[1739787281299,4.47594,2764.3,2763.7,3.61824]
[1739787281499,4.47594,2764.3,2763.7,8.02118]
[1739787281699,3.61791,2764.1,2763.7,0.7847]
[1739787282233,3.61715,2764.6,2763.8,3.61807]
[1739787282437,0.2955,2764.7,2764.1,3.6178]
[1739787282639,3.61715,2764.6,2764.1,3.6178]
[1739787282798,3.61729,2764.5,2763.9,3.61804]
[1739787283199,3.61729,2764.5,2763.9,7.90244416]
[1739787283401,3.61715,2764.6,2763.9,4.28440416]
[1739787283604,3.61715,2764.6,2764.0,3.61785]
[1739787284228,3.61745,2764.4,2763.9,4.28440416]
[1739787284431,3.61745,2764.4,2763.9,0.66641416]
[1739787284625,3.61745,2764.4,2763.9,4.28448416]
[1739787284819,3.61813,2763.9,2763.4,0.7757]
[1739787285141,3.61798,2764.0,2763.5,3.61852]
[1739787285337,3.61787,2764.1,2763.5,3.61852]
[1739787285549,4.18693,2764.3,2763.7,3.61827]
[1739787285720,3.61771,2764.2,2763.7,3.61827]
[1739787285923,3.61782,2764.1,2763.4,4.39434]
[1739787286123,0.0075,2764.4,2763.6,3.61834]
[1739787286322,3.61763,2764.3,2763.7,3.61831]
[1739787286543,3.61771,2764.2,2763.7,3.61831]
[1739787287116,3.61763,2764.3,2763.8,3.61817]
[1739787287312,4.18663,2764.5,2763.8,3.61817]
[1739787287514,3.61691,2764.8,2763.9,4.39667]
[1739787287859,3.61691,2764.8,2763.9,4.39659]
[1739787287860,0.289,2764.8,2763.9,4.39659]
[1739787288355,0.015,2764.7,2763.9,0.7786]
[1739787288519,3.61751,2764.4,2763.9,0.7786]
[1739787288715,0.0075,2764.7,2763.6,0.802]
[1739787288918,3.61774,2764.2,2763.7,3.6183]
[1739787289420,3.61748,2764.4,2763.9,3.61796]
[1739787289653,3.61748,2764.4,2763.8,3.6182]
[1739787289957,3.61748,2764.4,2763.8,7.23633]
[1739787290157,3.61748,2764.4,2763.9,3.61806]
[1739787290316,3.61722,2764.6,2763.9,0.5978713]
[1739787290526,0.289,2764.6,2763.9,0.5978713]
[1739787290718,3.61749,2764.4,2763.9,0.5978713]
[1739787291155,3.90623,2764.6,2764.0,3.61787]
[1739787291343,3.90619,2764.6,2764.0,3.61787]
[1739787291523,3.90619,2764.6,2764.0,4.03943413]
[1739787291723,7.52342,2764.6,2764.0,4.03942413]
[1739787292246,3.90619,2764.6,2764.1,3.61777]
[1739787292461,3.90619,2764.6,2764.0,4.03942413]
[1739787293049,3.90619,2764.6,2764.0,7.65728413]
[1739787293244,0.289,2764.6,2764.0,4.03942413]
[1739787293457,3.61729,2764.5,2764.0,4.03942413]
[1739787293956,3.61736,2764.5,2764.0,0.42157413]
[1739787294159,3.61736,2764.5,2764.0,3.61794]
[1739787294539,3.61738,2764.5,2763.9,3.61807]
[1739787295063,3.61753,2764.4,2763.8,3.6181]
[1739787295228,3.61762,2764.3,2763.8,3.6181]
[1739787295631,3.61768,2764.2,2763.8,3.6181]
[1739787295848,3.61762,2764.3,2763.8,4.421949]
[1739787296055,3.61762,2764.3,2763.8,8.040069]
[1739787296265,3.61762,2764.3,2763.8,4.421949]
[1739787296440,3.61775,2764.2,2763.8,0.803849]
[1739787297028,3.61787,2764.1,2763.6,4.42038]
[1739787297764,0.0075,2764.1,2763.4,3.61867]
[1739787297962,3.61811,2763.9,2763.4,3.61867]
[1739787298139,3.61811,2763.9,2763.4,0.66964172]
[1739787298346,3.61826,2763.8,2763.4,0.66964172]
[1739787298642,4.18694,2764.3,2763.6,3.6184]
[1739787298825,0.5693,2764.3,2763.6,3.6184]
[1739787299028,3.61775,2764.2,2763.6,3.6184]
[1739787299229,0.8563,2764.3,2763.7,3.61833]
[1739787299426,3.61772,2764.2,2763.7,3.61833]
[1739787299829,3.61772,2764.2,2763.6,4.40910817]
[1739787299830,3.90464,2764.3,2763.6,4.40910817]
[1739787300024,3.61768,2764.2,2763.6,4.40910817]
[1739787300359,0.0075,2763.9,2763.3,0.8311]
[1739787300553,3.61855,2763.6,2763.1,3.61901]
[1739787300761,3.61826,2763.8,2763.2,3.61887]
[1739787300959,3.37367997,2764.4,2763.6,3.61843]
[1739787300960,0.287,2764.1,2763.6,3.61843]
[1739787301259,3.61757,2764.3,2763.7,3.61822]
[1739787301564,0.5693,2764.4,2763.9,3.61799]
[1739787301728,0.287,2764.5,2763.7,0.802535]
[1739787301936,3.61749,2764.4,2763.8,3.61811]
[1739787302269,3.90438,2764.5,2763.9,3.61797]
[1739787302633,3.61744,2764.4,2763.9,3.61797]
[1739787303268,3.61744,2764.4,2763.8,7.23624]
[1739787303473,0.0075,2763.8,2763.0,0.17941777]
[1739787303670,3.6189,2763.3,2762.8,0.7887]
[1739787303834,4.18796,2763.5,2762.9,3.61938]
[1739787304167,3.63322,2763.8,2762.9,3.61938]
[1739787304367,4.18741,2763.9,2763.0,0.440808]
[1739787304568,4.18741,2763.9,2763.4,0.7851]
[1739787305067,3.6182,2763.8,2763.4,0.7851]
[1739787305840,3.6182,2763.8,2763.2,0.8158]
[1739787306174,3.6182,2763.8,2763.3,0.443491]
[1739787306332,3.6182,2763.8,2763.2,0.8158]
[1739787306533,0.5693,2763.9,2763.3,3.61878]
[1739787306735,0.289,2764.0,2763.5,3.61858]
[1739787307056,4.18699,2764.2,2763.5,3.61858]
[1739787307057,4.18699,2764.2,2763.6,3.61846]
[1739787307258,3.6183,2763.8,2763.2,0.8158]
[1739787307649,3.6183,2763.8,2763.3,3.61885]
[1739787308250,3.6183,2763.8,2763.2,1.259282]
[1739787308571,3.61796,2764.0,2763.2,1.259282]
[1739787308737,3.61812,2763.9,2763.3,3.61885]
[1739787308935,3.6181,2763.9,2763.3,3.61885]
[1739787309168,3.6181,2763.9,2763.4,0.4878132]
[1739787309579,3.61821,2763.8,2763.4,0.4878132]
[1739787309952,3.61796,2764.0,2763.4,0.4878132]
[1739787309953,3.61815,2763.9,2763.4,0.4878132]
[1739787310153,4.36676675,2764.4,2763.4,0.4878132]
[1739787310154,3.61781,2764.1,2763.4,0.4878132]
[1739787310358,3.61781,2764.1,2763.5,7.23702]
[1739787310595,3.61781,2764.1,2763.5,3.6185]
[1739787310878,3.61761,2764.3,2763.7,0.7713]
[1739787311078,0.287,2764.4,2763.9,3.61799]
[1739787311685,0.287,2764.4,2763.7,4.38954]
[1739787311686,4.1863,2764.8,2763.7,0.7713]
[1739787311857,3.617,2764.8,2764.2,0.7713]